Cogmind - Beta 16 @@@ ROGUE MODE // 2025.12.16 @ 20:22:52 Player: Gentle Jesus Result: Destroyed by G-47 Trooper with Particle Gun Performance ------------- Evolutions (2) 1000 Regions Visited (5) 1000 Robots Destroyed (21) 105 Value Destroyed (351) 351 Prototype IDs (1) 20 Alien Tech Used (0) 0 Bonus (0) 0 TOTAL SCORE: 2476 Bonus ------- None Cogmind --------- Core Integrity 0/550 Matter 95/300 Energy 92/100 System Corruption 0% Temperature Cool (15) Movement Core (50) Location -8/Materials Parts ------- > --- POWER (1) -------- (None) > --- PROPULSION (5) --- (None) > --- UTILITY (3) ------ (None) > --- WEAPON (2) ------- (None) > --- INVENTORY (5) ---- Ion Engine Large Storage Unit Improved Terrain Scanner Seismic Detector Assault Rifle Peak State ------------ > --- POWER ------------ Deuterium Engine > --- PROPULSION ------- Hover Unit Hover Unit Hover Unit Hover Unit > --- UTILITY ---------- Small Storage Unit Improved Sensor Array Improved Signal Interpreter > --- WEAPON ----------- Medium Laser Heavy Flail > --- INVENTORY -------- Ion Engine Large Storage Unit Improved Terrain Scanner Seismic Detector Assault Rifle Mini Grenade Launcher [Rating: 18] Favorites ----------- Power Light Ion Engine Engine Light Ion Engine Propulsion Hover Unit Wheel Wheel Hover Unit Hover Unit Flight Unit Surge Thruster Utility Small Storage Unit Device Seismic Detector Storage Small Storage Unit Processor Improved Signal Interpreter Weapon Medium Laser Energy Gun Medium Laser Ballistic Gun Assault Rifle Launcher Mini Grenade Launcher Impact Weapon Heavy Flail Build | -11 -10 -10 -10 -9 -8 ------- Run | Yrd Mat Min Exi Min Mat Slots Evolved 4 | . . . . . 4 Power . | . . . . . . Propulsion 3 | . . . . . 3 Utility 1 | . . . . . 1 Weapon . | . . . . . . Parts Attached 21 | 7 . 1 . 1 12 Power 4 | 1 . . . 1 2 Engine 4 | 1 . . . 1 2 Core . | . . . . . . Reactor . | . . . . . . Propulsion 8 | 2 . . . . 6 Treads . | . . . . . . Leg . | . . . . . . Wheel 2 | 2 . . . . . Hover 4 | . . . . . 4 Flight 2 | . . . . . 2 Utility 5 | 2 . . . . 3 Device 3 | 1 . . . . 2 Storage 1 | 1 . . . . . Processor 1 | . . . . . 1 Hackware . | . . . . . . Protection . | . . . . . . Artifact . | . . . . . . Weapon 4 | 2 . 1 . . 1 Energy Gun 1 | 1 . . . . . Energy Cannon . | . . . . . . Ballistic Gun 1 | 1 . . . . . Ballistic Cannon . | . . . . . . Launcher 1 | . . 1 . . . Special Weapon . | . . . . . . Impact Weapon 1 | . . . . . 1 Slashing Weapon . | . . . . . . Piercing Weapon . | . . . . . . Special Melee Weapon . | . . . . . . Unidentified Prototypes 1 | . . . . . 1 Parts Lost 10 | . . . . . 10 Power . | . . . . . . Propulsion 6 | . . . . . 6 Utility 1 | . . . . . 1 Weapon 3 | . . . . . 3 Highest Loss Streak 10 | . . . . . 10 To Critical Strikes . | . . . . . . Average Backups 5 | 1 5 8 8 8 3 Power . | . 1 1 1 1 . Propulsion 3 | . 2 5 5 5 . Utility . | . 1 1 1 1 . Weapon 1 | . 1 1 1 1 1 Tool/Special . | . . . . . . Unused Backups 4 | . 1 . . . 3 Power . | . . . . . . Propulsion 2 | . 1 . . . 1 Utility 1 | . . . . . 1 Weapon 1 | . . . . . 1 Tool/Special . | . . . . . . Average Slot Usage (%) 94 | . 100 100 100 100 81 Engine 12 | . 14 14 14 14 8 Wheel 20 | . 28 28 28 28 . Hover 9 | . . . . . 31 Device 14 | . 14 14 14 14 15 Storage 12 | . 14 14 14 14 8 Energy Gun 12 | . 14 14 14 14 7 Ballistic Gun 4 | . 14 10 . . . Launcher 6 | . . 3 14 14 2 Impact Weapon 1 | . . . . . 5 Peak Build Rating 18 | 7 8 9 9 9 18 Average Rating 9 | 4 7 8 9 9 14 On Entrance 7 | . 7 8 9 9 9 Avg Prop Armor Cover (%) 5 | . . . . . 5 Naked Turns 2 | . . . . . 2 Heaviest Build 21 | 13 13 13 12 12 21 Greatest Support 26 | 26 26 26 26 26 24 Greatest Overweight (x) 2 | . . . . . 2 Average Overweight (x) . | . . . . . . Largest Inventory Capacity 8 | 8 8 8 8 8 8 Average Capacity 7 | 7 8 8 8 8 7 Most Carried 8 | 5 8 8 8 8 8 Average Carried 5 | 1 5 8 8 8 3 Final Capacity 8 | 8 8 8 8 8 5 Final Carried 8 | 5 8 8 8 8 5 Class Distribution -------------------- 76% | Mutant 23% | Scavenger-Mutant Dominant Class ---------------- Mutant | -10/Materials Mutant | -10/Mines Mutant | -10/Exiles Mutant | -9/Mines Scavenger-Mutant | -8/Materials Resources | -11 -10 -10 -10 -9 -8 ----------- Run | Yrd Mat Min Exi Min Mat Matter Collected 338 | 218 97 13 . 9 1 Remotely . | . . . . . . Salvage Created 285 | 25 100 30 . 26 104 Parts 50 | 6 14 2 . 12 16 Haulers Intercepted . | . . . . . . Recyclers Shooed . | . . . . . . Parts Field Recycled . | . . . . . . Retrieved Matter . | . . . . . . Parts Self-Destructed . | . . . . . . Prevented . | . . . . . . Parts Restored . | . . . . . . Kills | -11 -10 -10 -10 -9 -8 ------- Run | Yrd Mat Min Exi Min Mat Combat Hostiles Destroyed 17 | . 4 . . 7 6 Guns 4 | . 4 . . . . AOE 13 | . . . . 7 6 Classes Destroyed 6 | 1 3 . . . 2 Builder 1 | . . . . . 1 Tunneler 2 | 1 . 1 . . . Watcher 1 | . 1 . . . . Swarmer 10 | . 3 . . 7 . Cutter 4 | . . . . . 4 Grunt 3 | . 1 . . . 2 Best Kill Streak 7 | 1 4 1 . 4 7 Combat Bots Only 6 | . 4 . . 4 6 Max Kills in Single Turn 4 | 1 2 1 . 4 3 Gunslinging 1 | . 1 . . . . Exploded 4 | . . . . 4 3 Melee . | . . . . . . Uniques/NPCs Destroyed . | . . . . . . Combat | -11 -10 -10 -10 -9 -8 -------- Run | Yrd Mat Min Exi Min Mat Hostile Shots Fired 97 | . 35 . . 9 53 Missed 31 | . 9 . . 4 18 Hits 66 | . 26 . . 5 35 Melee 3 | . . . . . 3 Projectile 63 | . 26 . . 5 32 Critical Strikes 4 | . 1 . . 1 2 Damage Taken 1161 | . 211 . . 106 844 Core 646 | . 49 . . 42 555 Absorbed by Shields . | . . . . . . Core Remaining (%) 81 | 100 . . . 63 . Volleys Fired 25 | 2 13 1 . 5 4 Largest 2 | 2 2 2 . 1 1 Hottest 70 | 70 70 70 . 30 30 Shots Fired 40 | 4 25 2 . 5 4 Gun 31 | 4 25 2 . . . Cannon . | . . . . . . Launcher 9 | . . . . 5 4 Special . | . . . . . . Kinetic 16 | 2 13 1 . . . Thermal 15 | 2 12 1 . . . Explosive 9 | . . . . 5 4 Electromagnetic . | . . . . . . Robot Hit Streak 3 | 1 2 3 . . 3 Robot Miss Streak 8 | 3 8 . . 1 1 Penetration Max . | . . . . . . Secondary Targets 2 | . 2 . . . . Max Gunslinging Chain 1 | . 1 . . . . Shots Hit Robots 12 | 1 7 1 . . 3 Core Hits 34 | 1 6 1 . 5 21 Critical Kills . | . . . . . . Critical Parts Destroyed . | . . . . . . Critical Strikes . | . . . . . . Melee Attacks 3 | . . . . . 3 Impact 3 | . . . . . 3 Slashing . | . . . . . . Piercing . | . . . . . . Sneak Attacks . | . . . . . . Combat Hostiles . | . . . . . . Follow-up Attacks . | . . . . . . Damage Inflicted 1209 | 10 133 13 . 326 727 Guns 156 | 10 133 13 . . . Cannons . | . . . . . . Explosions 1053 | . . . . 326 727 Melee . | . . . . . . Ramming . | . . . . . . Kinetic 82 | 10 72 . . . . Thermal 119 | . 61 13 . 45 . Explosive 1008 | . . . . 281 727 Electromagnetic . | . . . . . . Impact . | . . . . . . Slashing . | . . . . . . Piercing . | . . . . . . Highest Corruption . | . . . . . . Average Corruption . | . . . . . . Corruption Purged . | . . . . . . Corruption Blocked . | . . . . . . Overload Shots . | . . . . . . Overflow Damage 81 | . . . . 58 23 Projectiles . | . . . . . . Explosions 81 | . . . . 58 23 Melee . | . . . . . . Knockbacks . | . . . . . . Impact . | . . . . . . Kinetic . | . . . . . . Secondary . | . . . . . . Self-Inflicted Damage 156 | . . . . 58 98 Shots 4 | . . . . 2 2 Rammed . | . . . . . . Targets Rammed . | . . . . . . Kicked . | . . . . . . Crushed . | . . . . . . Highest Temperature 81 | 18 81 9 . . 19 Average Temperature 22 | 10 27 6 . . 6 Received Heat Transfer 270 | . 18 . . 9 243 Siege Activations . | . . . . . . Martial Activations . | . . . . . . Shielding Activations . | . . . . . . Robots Disrupted . | . . . . . . Combat Hostiles . | . . . . . . Robots Corrupted . | . . . . . . Combat Hostiles . | . . . . . . Parts Fried . | . . . . . . Impact Corruptions . | . . . . . . Robots Melted . | . . . . . . Combat Hostiles . | . . . . . . Parts Melted . | . . . . . . Heat Transferred 272 | . 185 37 . 50 . Parts Sabotaged . | . . . . . . Parts Stolen . | . . . . . . Parts Stripped . | . . . . . . Power Chain Reactions . | . . . . . . Alert | -11 -10 -10 -10 -9 -8 ------- Run | Yrd Mat Min Exi Min Mat Maximum Alert Level . | . . . . . . Low Security (%) 100 | 100 100 100 . 100 100 Level 1 . | . . . . . . Level 2 . | . . . . . . Level 3 . | . . . . . . Level 4 . | . . . . . . Level 5 . | . . . . . . High Security . | . . . . . . Max Security . | . . . . . . Peak Influence 149 | 5 101 19 . 149 143 Initial 53 | . . 19 . . 53 Average 28 | . 49 4 . 39 19 Influence Increases 587 | 5 121 5 . 256 200 Destroy 0b10 Robot/C 340 | . 80 . . 140 120 Destroy 0b10 Robot/NC 20 | 5 5 5 . . 5 Destroy Leader 72 | . 22 . . 20 30 Successful Hack 14 | . 14 . . . . Disable Machine 30 | . . . . 15 15 Destroy Structure 81 | . . . . 51 30 Lose Combat Pursuer 30 | . . . . 30 . Influence Decreases 494 | 5 70 56 . 117 246 Entered New Map 118 | . . 32 . . 86 Time Decay 290 | 5 70 24 . 117 74 Lost Part 86 | . . . . . 86 Squads Dispatched 5 | . 2 . . . 3 Investigation 1 | . 1 . . . . Extermination . | . . . . . . Reinforcement 4 | . 1 . . . 3 Assault . | . . . . . . Garrison . | . . . . . . Intercept . | . . . . . . Searches Triggered . | . . . . . . Construction Impeded 1 | . . . . . 1 Haulers Reinforced . | . . . . . . Active Scanning Responses . | . . . . . . Cargo Convoy Interrupts . | . . . . . . Stealth | -11 -10 -10 -10 -9 -8 --------- Run | Yrd Mat Min Exi Min Mat Distress Signals 1 | . . 1 . . . Communications Jammed . | . . . . . . Distress Signals . | . . . . . . Times Spotted 24 | . 8 . . 6 10 Peak Tracking Total 6 | . 4 . . 4 6 Tactical Retreats 1 | . . . . 1 . Traps | -11 -10 -10 -10 -9 -8 ------- Run | Yrd Mat Min Exi Min Mat Traps Triggered 2 | . 1 . . . 1 Indirectly . | . . . . . . Trap Hack Attempts . | . . . . . . Triggered . | . . . . . . Disarmed . | . . . . . . Reprogrammed . | . . . . . . Reused . | . . . . . . Traps Extracted . | . . . . . . Installed . | . . . . . . Triggered . | . . . . . . Machines | -11 -10 -10 -10 -9 -8 ---------- Run | Yrd Mat Min Exi Min Mat Machines Disabled 2 | . . . . 1 1 Max in Single Turn 1 | . . . . 1 1 Machines Repaired . | . . . . . . Machines Dismantled . | . . . . . . Machines Sabotaged . | . . . . . . Overloaded Fab Kills . | . . . . . . Hacking | -11 -10 -10 -10 -9 -8 --------- Run | Yrd Mat Min Exi Min Mat Machines Accessed 4 | . 1 . . . 3 Terminals 3 | . 1 . . . 2 Fabricators . | . . . . . . Repair Stations . | . . . . . . Recycling Units . | . . . . . . Scanalyzers 1 | . . . . . 1 Garrison Access . | . . . . . . Total Hacks 10 | . 4 . . . 6 Successful 5 | . 2 . . . 3 Failed 5 | . 2 . . . 3 Catastrophic 2 | . 2 . . . . Database Lockouts . | . . . . . . Manual 6 | . 4 . . . 2 Terminals 9 | . 4 . . . 5 Fabricators . | . . . . . . Repair Stations . | . . . . . . Recycling Units . | . . . . . . Scanalyzers 1 | . . . . . 1 Garrison Access . | . . . . . . Terminal Hacks 4 | . 2 . . . 2 Branch Access Points 1 | . 1 . . . . Emergency Access Points 1 | . . . . . 1 Zone Layout 2 | . 1 . . . 1 Fabricator Hacks . | . . . . . . Repair Station Hacks . | . . . . . . Recycling Unit Hacks . | . . . . . . Scanalyzer 1 | . . . . . 1 Retrieve Study 1 | . . . . . 1 Garrison Access Hacks . | . . . . . . Unauthorized Hacks . | . . . . . . Terminals . | . . . . . . Fabricators . | . . . . . . Repair Stations . | . . . . . . Recycling Units . | . . . . . . Scanalyzers . | . . . . . . Garrison Access . | . . . . . . Data Cores Recovered . | . . . . . . Used . | . . . . . . Hacking Detections 4 | . 1 . . . 3 Full Trace Events . | . . . . . . Feedback Events . | . . . . . . Feedback Blocked . | . . . . . . Robot Schematics Acquired . | . . . . . . Robots Built . | . . . . . . Authchips . | . . . . . . Time . | . . . . . . Total Robot Build Rating . | . . . . . . Part Schematics Acquired . | . . . . . . Parts Built . | . . . . . . Authchips . | . . . . . . Time . | . . . . . . Total Part Build Rating . | . . . . . . Part Studies Acquired 1 | . . . . . 1 Parts Repaired . | . . . . . . Time . | . . . . . . Parts Recycled . | . . . . . . Recycled Matter . | . . . . . . Retrieved Matter . | . . . . . . Retrieved Components . | . . . . . . Parts Scanalyzed . | . . . . . . Part Schematics Acquired . | . . . . . . Parts Damaged . | . . . . . . Bothacking | -11 -10 -10 -10 -9 -8 ------------ Run | Yrd Mat Min Exi Min Mat Used RIF Installer . | . . . . . . Robots Hacked . | . . . . . . Non-combat . | . . . . . . Combat . | . . . . . . Robot Hacks Applied . | . . . . . . Relay Couplers Released . | . . . . . . Fabnet Peak Effective % . | . . . . . . Robots Rewired . | . . . . . . Allies Hacked . | . . . . . . Hacks Repelled . | . . . . . . Allies | -11 -10 -10 -10 -9 -8 -------- Run | Yrd Mat Min Exi Min Mat Total Allies . | . . . . . . Largest Group . | . . . . . . Highest-Rated Group . | . . . . . . Highest-Rated Ally . | . . . . . . Total Orders . | . . . . . . Ally Attacks . | . . . . . . Total Damage . | . . . . . . Kills . | . . . . . . Allies Corrupted . | . . . . . . Allies Melted . | . . . . . . Intel | -11 -10 -10 -10 -9 -8 ------- Run | Yrd Mat Min Exi Min Mat Active Infowar (turns) 1126 | 9 207 150 125 320 315 Sensors 52 | . . . . . 52 Terrain 255 | . . . . . 255 Seismic 1073 | 9 207 150 125 320 262 Robot Analysis Total . | . . . . . . Derelict Logs Recovered 2 | . . 1 . 1 . Drone Launches . | . . . . . . Drone Recoveries . | . . . . . . Exploration | -11 -10 -10 -10 -9 -8 ------------- Run | Yrd Mat Min Exi Min Mat Turns Passed 1192 | 63 207 150 125 320 327 Spaces Moved 1034 | 48 151 145 139 301 250 Core 11 | 3 . . . . 8 Treads . | . . . . . . Legs . | . . . . . . Wheels 781 | 45 151 145 139 301 . Hover 213 | . . . . . 213 Flight 29 | . . . . . 29 Fastest Speed 35 | 50 90 90 90 90 35 Average Speed 79 | 86 90 90 90 90 47 Slowest Speed 115 | 90 90 90 90 90 115 Overloaded Moves . | . . . . . . Propulsion Burnouts . | . . . . . . Robots Hopped . | . . . . . . Potential Cave-ins . | . . . . . . Cave-ins Triggered . | . . . . . . Exploration Rate (%) 33 | 3 26 35 51 67 21 Regions Visited 5 Branch Regions 3 Pre-discovered Areas 1 | . . . . 1 . Known Exits Taken 1 | . 1 . . . . Unknown Exits Taken 4 | 1 . 1 1 1 . Scrap Searched . | . . . . . . Spaces Dug 2 | . . . . . 2 Terrain Destroyed 102 | . . . . 61 41 Melee 2 | . . . . . 2 Projectile . | . . . . . . AOE 100 | . . . . 61 39 Terrain Rammed . | . . . . . . Walls Destroyed . | . . . . . . Machines Disabled . | . . . . . . Actions | -11 -10 -10 -10 -9 -8 --------- Run | Yrd Mat Min Exi Min Mat Total 1352 | 61 198 162 138 345 448 Wait 245 | . 28 15 . 38 164 Move 1029 | 47 150 144 138 300 250 Hop . | . . . . . . Pick Up 13 | 5 5 . . . 3 Fast Attach 14 | 7 . 1 . . 6 Attach 6 | . . . . . 6 Detach 2 | . . . . . 2 Swap 5 | . . . . 1 4 Drop 10 | . 2 1 . 1 6 Fire 25 | 2 13 1 . 5 4 Melee 3 | . . . . . 3 Ram . | . . . . . . Kick . | . . . . . . Crush . | . . . . . . Escape Stasis . | . . . . . . Rewire . | . . . . . . Trap . | . . . . . . Miscellaneous . | . . . . . . Route ------- -11/Scrapyard -10/Materials (discovered 2 exits: *Min x2) -10/Mines (discovered 2 exits: [*Mat] / [*Exi]) -10/Exiles -9/Mines -8/Materials (discovered 2 exits: *Fac x2) History --------- Turn | Location | Event 22 | -11/Scrapyard | Discovered new exit (range 16) 64 | -11/Scrapyard | Entered Materials 165 | -10/Materials | Met 8R-AWN 177 | -10/Materials | Discovered new exit (range 15) 179 | -10/Materials | Identified exit to Mines 271 | -10/Materials | Entered Mines 272 | -10/Mines | Followed 8R-AWN into the Mines 312 | -10/Mines | Learned location of 1 exit from Materials 317 | -10/Mines | Build established: Mutant 325 | -10/Mines | Assembled infested the area 330 | -10/Mines | Assisted by a Guerilla fighting off Assembled 379 | -10/Mines | Discovered new exit (range 9) 417 | -10/Mines | Discovered new exit (range 5) 421 | -10/Mines | Entered Exiles 443 | -10/Exiles | Welcomed by 8R-AWN 459 | -10/Exiles | Met EX-HEX 485 | -10/Exiles | Met EX-BIN 496 | -10/Exiles | Met EX-DEC 537 | -10/Exiles | Discovered new exit (range 11) 546 | -10/Exiles | Entered Mines 800 | -9/Mines | Learned location of Zion (-7) 853 | -9/Mines | Discovered new exit (range 15) 866 | -9/Mines | Entered Materials 866 | -8/Materials | Evolved 4 slots: Propulsion x3, Utility x1 867 | -8/Materials | Identified exit to Factory 1160 | -8/Materials | Discovered exit to Factory (range 4) 1176 | -8/Materials | Core integrity fell below 50% 1182 | -8/Materials | Core integrity fell below 20% 1193 | -8/Materials | Destroyed by G-47 Trooper with Particle Gun Last Messages --------------- 01184_ K-01 Serf collects debris. 01186_ Acquired 1 matter. 01188_ K-01 Serf collects debris. 01188_ Connecting with Scanalyzer... >>Study(Surge Thruster) Identified Surge Thruster... Downloading performance data... Effective improvements: +1 support 01189_ Triggered Blade Trap. 01189_ Massive razor-sharp blades shoot up from within the floor. 01189_ Surge Thruster+ severed. 01189_ Imp. Signal Interpreter severed. 01190_ Acquired Surge Thruster+. 01192_ The unstable cave ceiling collapses. 01192_ Surge Thruster+ destroyed. 01192_ U-05 Engineer builds a Wall. 01192_ Critical hit (Burn: +37). 01192_ R-06 Scavenger knocked back. Map ----- +----------------------------------------------------+ | # #### ###?????????????????????????????????????? | | # #??# #???????????????????????????????????????? | | / #??# #???????????????????????????????????????? | | ### #??# #???????????????????????????????????????? | | ##?# #???????????????????????????????????????? | | ########+###?????????????????????????????????????? | | #??????????????????????????????????????? | | #??????????????????????????????????????? | | #??????????????????????????????????????? | | #?????????? ?????????????????????????? | | #?????????+ ????????????????????????? | | ####+######?????????# ????????????????????????? | | # #????????????# #????????????????????????? | | # #????????????# ##########???????????????? | | + #????????????# # "" #???????????????? | | # ########?????# # ""S [ #???????????????? | | # # #?????# Y # "" #???????????????? | | ### ### " #?????# # #???????????????? | | #?# #?# " #?????# # #???????????????? | | #?# #?# " #?????# + """ #???????????????? | | #?# #?# ####?## # """ #???????????????? | | #### ### ## ### g # """ #???????????????? | | ?# ###+##### H g #???????????????? | | ?# u %########???????????????? | | ?# %k ! #?????????????????? | | ## !%% %% r @ #?????????????????? | | ?# ######## #*# = #?????????????????? | | ?#######??????# / %g !#?????????????????? | | ??????????????# # #!< #?????????????????? | | ?#????????????##### %* #?????????????????? | | ??????????????????#### ####;##?????????????????? | | ?????????????????????#####???##??????????????????? | | ?????????????????????????????????????????????????? | | ?????????????????????????????????????????????????? | | ?????????????????????????????????????????????????? | | ?????????????????????????????????????????????????? | | | | | | | | | | | | | | | | | | | | | | | | | | | | | +----------------------------------------------------+ Best States ------------- Heat Dissipation 31 Energy Generation 14 Energy Capacity 275 Matter Stores 300 Matter Capacity 300 Sight Range 16 Robot Scan Range 15 Terrain Scan Range 16 Terrain Scan Density 10 Evasion (%) 55 Item Schematics ----------------- None Robot Schematics ------------------ None Fabricated ------------ Nothing Repaired ---------- Nothing Studied --------- Surge Thruster | -8/Materials | Hacked Alien Tech Used ----------------- None Achievements -------------- Follow The Leader Challenges ------------ None Game ------ Seed ModifiedVortexGravjet Manual? 0 Play Time 00:10:49 Cumulative 224.6 hours Start 2025.12.15 @ 23:49:22 End 2025.12.16 @ 20:22:52 Sessions 3 Manual Loads 0 Difficulty Rogue Special Mode None Game No. 174 Rogue 6 Adventurer 168 Explorer 0 Win Type - Total 15 Types 7/0/5/3/0/0/0/0/0/0 Lore% 73 Gallery% 70 Achievement% 53 Wizard Run 0 Options --------- Layout 1 ASCII 0 Keyboard 0 Movement Mouse Keybinds 0 Fullscreen 1 Font 24/Smallcaps Map View 50x35 Zoom Use 4% Tactical HUD 1 Map Filters NONE Filters NONE Steam 1 RUN: 1235ea35-bf56-4091-b72b-d843a388397e